fUST/lending_fUST_20251215
["ID","MTS","AMOUNT","RATE_DAILY","PERIOD"]
[398499353,1765755533200,5000.0,0.0001381,2]
[398499354,1765755542865,156.16,0.00012,2]
[398499355,1765755543182,156.16,0.000123,2]
[398499356,1765755543674,156.16,0.000125,2]
[398499357,1765755543960,156.16,0.000128,2]
[398499358,1765755544120,470.51398164,0.00013699,2]
[398499359,1765755544224,156.16,0.00013,2]
[398499360,1765755544510,156.16,0.000133,2]
[398499361,1765755544804,156.16,0.000135,2]
[398499362,1765755547154,500.0,0.00013273,2]
[398499363,1765755551300,500.0,0.00013273,2]
[398499364,1765755551499,300.0,0.00013673,2]
[398499365,1765755555207,5000.0,0.00013691,2]
[398499366,1765755561539,500.0,0.00013273,2]
[398499367,1765755564093,500.0,0.00013273,2]
[398499369,1765755572485,392.81,7.699e-05,2]
[398499370,1765755573362,785.61,8.066e-05,2]
[398499371,1765755573545,1053.11,8.433e-05,2]
[398499372,1765755573586,125.31,8.433e-05,2]
[398499373,1765755573809,1571.22,8.799e-05,2]
[398499374,1765755574261,1964.03,9.166e-05,2]
[398499375,1765755574870,2356.84,9.533e-05,2]
[398499376,1765755575304,2749.64,9.899e-05,2]
[398499377,1765755575719,1232.97,0.00010266,2]
[398499378,1765755575752,1909.48,0.00010266,2]
[398499379,1765755576230,3535.25,0.00010632,2]
[398499380,1765755576602,3928.06,0.00010999,2]
[398499381,1765755578600,627.22,0.00013691,2]
[398499382,1765755578633,4372.78,0.00013691,2]
[398499383,1765755601349,5000.0,0.00013691,2]
[398499384,1765755603878,500.0,0.00013273,2]
[398499385,1765755606123,127.23,0.00012,2]
[398499386,1765755606154,25.88,0.00012,2]
[398499387,1765755606472,153.11,0.000125,2]
[398499388,1765755607108,153.11,0.00013,2]
[398499389,1765755607420,153.11,0.000135,2]
[398499390,1765755613867,500.0,0.00013273,2]
[398499391,1765755617067,500.0,0.00013273,2]
[398499392,1765755617340,500.0,0.00013273,2]
[398499393,1765755617866,500.0,0.00013273,2]
[398499394,1765755624203,5000.0,0.00013691,2]
[398499395,1765755630327,2514.8,0.00012806,2]
[398499396,1765755630361,10000.01,0.00012806,2]
[398499397,1765755630395,10000.01,0.00012806,2]
[398499398,1765755630427,10000.01,0.00012806,2]
[398499399,1765755630461,10000.01,0.00012806,2]
[398499400,1765755630494,10000.01,0.00012806,2]
[398499401,1765755630527,10000.01,0.00012806,2]
[398499402,1765755630559,21596.9359128,0.00012806,2]
[398499404,1765755646542,166.14845729,0.000129,2]
[398499405,1765755651244,373.43,7.708e-05,2]
[398499406,1765755652230,746.86,8.075e-05,2]
[398499407,1765755652651,1120.3,8.442e-05,2]
[398499408,1765755653070,1493.73,8.81e-05,2]
[398499409,1765755653480,1867.16,9.177e-05,2]
[398499410,1765755653928,2240.59,9.544e-05,2]
[398499411,1765755654351,2614.03,9.911e-05,2]
[398499412,1765755654915,2987.46,0.00010278,2]
[398499413,1765755655340,3360.89,0.00010645,2]
[398499414,1765755656004,3734.32,0.00011012,2]
[398499416,1765755663813,151.18,0.00012,2]
[398499417,1765755664129,151.18,0.000121,2]
[398499418,1765755664415,151.18,0.000121,2]
[398499419,1765755664735,151.18,0.000122,2]
[398499420,1765755665043,151.18,0.000122,2]
[398499421,1765755665357,151.18,0.000123,2]
[398499422,1765755665630,151.18,0.000124,2]
[398499423,1765755665908,151.18,0.000124,2]
[398499424,1765755666351,151.18,0.000125,2]
[398499425,1765755667252,151.18,0.000125,2]
[398499426,1765755667363,151.18,0.000126,2]
[398499427,1765755667468,151.18,0.000127,2]
[398499428,1765755667557,500.0,0.00013273,2]
[398499429,1765755667595,151.18,0.000127,2]
[398499430,1765755667969,151.18,0.000128,2]
[398499431,1765755668247,151.18,0.000129,2]
[398499433,1765755668525,151.18,0.000129,2]
[398499434,1765755668811,151.18,0.00013,2]
[398499435,1765755669087,151.18,0.00013,2]
[398499436,1765755669433,151.18,0.000131,2]
[398499437,1765755669713,151.18,0.000132,2]
[398499438,1765755670038,151.18,0.000132,2]
[398499439,1765755670326,151.18,0.000133,2]
[398499440,1765755670606,151.18,0.000133,2]
[398499441,1765755670978,151.18,0.000134,2]
[398499442,1765755671009,500.0,0.00013273,2]
[398499444,1765755680849,500.0,0.00013273,2]
[398499445,1765755682774,500.0,0.00013273,2]
[398499446,1765755683613,901.0,0.00013418,2]
[398499447,1765755688800,201.0,5.2e-07,2]
[398499448,1765755689969,201.0,5.2e-07,2]
[398499449,1765755696347,5000.0,0.00013418,2]
[398499450,1765755704434,176.57,0.0001,2]
[398499451,1765755713284,-151.18,0.000135,2]
[398499452,1765755713320,-151.18,0.000135,2]
[398499453,1765755719511,5000.0,0.000135,2]
[398499455,1765755725265,500.0,0.00013273,2]
[398499456,1765755725416,500.0,0.00013273,2]
[398499457,1765755725629,500.0,0.00013273,2]
[398499458,1765755727394,152.38,0.00012,2]
[398499459,1765755727747,152.38,0.00012,2]
[398499460,1765755728066,152.38,0.000121,2]
[398499461,1765755728352,152.38,0.000121,2]
[398499462,1765755728634,152.38,0.000122,2]
[398499463,1765755728932,152.38,0.000122,2]
[398499464,1765755729252,152.38,0.000123,2]
[398499465,1765755730146,152.38,0.000123,2]
[398499466,1765755730241,152.38,0.000124,2]
[398499467,1765755730347,152.38,0.000124,2]
[398499468,1765755730592,152.38,0.000125,2]
[398499469,1765755730983,152.38,0.000125,2]
[398499470,1765755731308,152.38,0.000126,2]
[398499471,1765755731588,152.38,0.000126,2]
[398499472,1765755731883,152.38,0.000127,2]
[398499473,1765755732177,152.38,0.000127,2]
[398499474,1765755733102,152.38,0.000128,2]
[398499475,1765755733434,152.38,0.000128,2]
[398499476,1765755733754,152.38,0.000129,2]
[398499477,1765755734488,0.07,0.00013273,2]
[398499478,1765755734521,499.93,0.00013273,2]
[398499479,1765755734895,152.38,0.000129,2]
[398499480,1765755735030,152.38,0.00013,2]
[398499481,1765755735456,152.38,0.00013,2]
[398499482,1765755735803,152.38,0.000131,2]
[398499483,1765755736097,152.38,0.000131,2]
[398499484,1765755736342,500.0,0.00013273,2]
[398499485,1765755736437,152.38,0.000131,2]
[398499486,1765755736700,152.38,0.000132,2]
[398499487,1765755737032,152.38,0.000132,2]
[398499488,1765755737314,152.38,0.000133,2]
[398499489,1765755737589,152.38,0.000133,2]
[398499490,1765755737872,152.38,0.000134,2]
[398499491,1765755738146,152.38,0.000134,2]
[398499492,1765755738426,152.38,0.000135,2]
[398499493,1765755738667,500.0,0.00013273,2]
[398499494,1765755738717,152.38,0.000135,2]
[398499496,1765755741952,5000.0,0.000135,2]
[398499497,1765755743777,-5000.0,0.00013561,2]
[398499498,1765755743890,0.01,7.752e-05,2]
[398499499,1765755743922,556.62,7.752e-05,2]
[398499500,1765755744340,1113.26,8.121e-05,2]
[398499501,1765755744717,1669.9,8.49e-05,2]
[398499502,1765755745137,2226.53,8.859e-05,2]
[398499503,1765755745708,2783.16,9.228e-05,2]
[398499504,1765755745942,2207.16,9.597e-05,2]
[398499505,1765755745974,1132.63,9.597e-05,2]
[398499506,1765755746402,3896.42,9.967e-05,2]
[398499507,1765755746827,4453.06,0.00010336,2]
[398499508,1765755747284,517.9,0.00010705,2]
[398499509,1765755747315,4491.79,0.00010705,2]
[398499510,1765755747698,5508.22,0.00011074,2]
[398499511,1765755747732,58.1,0.00011074,2]
[398499512,1765755753155,205.10144344,0.00012815,2]
[398499513,1765755757354,5000.0,0.00013561,2]
[398499514,1765755760283,268.44479721,0.00013273,2]
[398499515,1765755764918,4468.36375935,0.00013561,2]
[398499516,1765755780588,5000.0,0.0001349,2]
[398499517,1765755783287,500.0,0.00013273,2]
[398499518,1765755783360,263.52857303,0.00013273,2]
[398499519,1765755786773,151.84,0.00012,2]
[398499520,1765755787052,151.84,0.000121,2]
[398499521,1765755787418,151.84,0.000121,2]
[398499522,1765755787636,500.0,0.00013273,2]
[398499523,1765755787693,151.84,0.000122,2]
[398499524,1765755787975,151.84,0.000123,2]
[398499525,1765755788441,151.84,0.000124,2]
[398499526,1765755789301,151.84,0.000124,2]
[398499527,1765755789674,151.84,0.000125,2]
[398499528,1765755789957,151.84,0.000126,2]
[398499529,1765755790339,151.84,0.000127,2]
[398499530,1765755790569,151.84,0.000127,2]
[398499531,1765755790855,151.84,0.000128,2]
[398499532,1765755790944,500.0,0.00013273,2]
[398499533,1765755791232,151.84,0.000129,2]
[398499534,1765755791755,151.84,0.00013,2]
[398499535,1765755792042,151.84,0.00013,2]
[398499536,1765755792436,151.84,0.000131,2]
[398499537,1765755792719,151.84,0.000132,2]
[398499538,1765755793829,151.84,0.000133,2]
[398499539,1765755794022,151.84,0.000133,2]
[398499540,1765755794131,151.84,0.000134,2]
[398499541,1765755795693,500.0,0.00013273,2]
[398499542,1765755796956,192.7942559,0.00012749,2]
[398499543,1765755799041,502.37398164,0.00013273,2]
[398499544,1765755801574,500.0,0.00013273,2]
[398499545,1765755802624,3504.51318943,0.00013491,2]
[398499546,1765755802656,1495.48681057,0.00013491,2]
[398499547,1765755803000,500.0,0.00013273,2]
[398499548,1765755820790,583.55,7.724e-05,2]
[398499549,1765755821669,1167.09,8.092e-05,2]
[398499550,1765755822101,1750.64,8.46e-05,2]
[398499551,1765755822510,2334.18,8.827e-05,2]
[398499552,1765755822911,2169.06318943,9.195e-05,2]
[398499553,1765755822941,748.66681057,9.195e-05,2]
[398499554,1765755823324,3501.27,9.563e-05,2]
[398499555,1765755823722,4084.82,9.931e-05,2]
[398499556,1765755824123,1665.25318943,0.00010299,2]
[398499557,1765755824156,3003.10681057,0.00010299,2]
[398499558,1765755825231,5251.91,0.00010667,2]
[398499559,1765755825379,1744.99318943,0.00011034,2]
[398499560,1765755825415,4090.45681057,0.00011034,2]
[398499561,1765755825485,5000.0,0.00013491,2]
[398499562,1765755846475,152.25,0.00012,2]
[398499563,1765755846736,152.25,0.000121,2]
[398499564,1765755847057,152.25,0.000122,2]
[398499565,1765755847358,152.25,0.000123,2]
[398499566,1765755847792,5000.0,0.0001348,2]
[398499567,1765755847827,152.25,0.000124,2]
[398499568,1765755848130,152.25,0.000125,2]
[398499569,1765755848388,152.25,0.000126,2]
[398499570,1765755848663,152.25,0.000127,2]
[398499571,1765755848962,152.25,0.000128,2]
[398499572,1765755849249,152.25,0.000129,2]
[398499573,1765755849575,152.25,0.00013,2]
[398499574,1765755849859,152.25,0.000131,2]
[398499575,1765755850196,152.25,0.000132,2]
[398499576,1765755850560,152.25,0.000133,2]
[398499577,1765755850650,2868.51,0.000134,2]
[398499578,1765755850677,7131.49,0.000134,2]
[398499579,1765755850788,152.25,0.000134,2]
[398499580,1765755852835,500.0,0.00013273,2]
[398499581,1765755854207,152.19,0.00012,2]
[398499582,1765755854942,500.0,0.00013273,2]
[398499583,1765755855133,500.0,0.00013273,2]
[398499584,1765755855555,500.0,0.00013273,2]
[398499585,1765755855887,500.0,0.00013273,2]
[398499586,1765755856282,64.08,0.00013273,2]
[398499587,1765755856309,435.92,0.00013273,2]
[398499588,1765755870318,5000.0,0.0001348,2]
[398499589,1765755892810,4564.09,0.0001348,2]
[398499590,1765755893688,-310.33921702,0.0001348,2]
[398499591,1765755899621,440.7,7.966e-05,2]
[398499592,1765755900021,881.4,8.346e-05,2]
[398499593,1765755900449,1322.1,8.725e-05,2]
[398499594,1765755901070,1762.8,9.105e-05,2]
[398499595,1765755901486,2203.51,9.484e-05,2]
[398499596,1765755901912,2644.21,9.863e-05,2]
[398499597,1765755902341,3084.91,0.00010243,2]
[398499598,1765755902818,3525.61,0.00010622,2]
[398499599,1765755903260,3966.31,0.00011001,2]
[398499600,1765755903666,4407.01,0.00011381,2]
[398499601,1765755903710,500.0,0.00013273,2]
[398499602,1765755904907,152.87,0.00012,2]
[398499603,1765755905247,152.87,0.000121,2]
[398499604,1765755905515,152.87,0.000123,2]
[398499605,1765755905950,152.87,0.000124,2]
[398499606,1765755906086,152.87,0.000125,2]
[398499607,1765755906385,152.87,0.000126,2]
[398499608,1765755906588,500.0,0.00013273,2]
[398499609,1765755906663,152.87,0.000128,2]
[398499610,1765755907046,152.87,0.000129,2]
[398499611,1765755907357,152.87,0.00013,2]
[398499612,1765755907666,152.87,0.000131,2]
[398499613,1765755912087,500.0,0.00013273,2]
[398499614,1765755914876,500.0,0.00013273,2]
[398499615,1765755917656,152.87,0.000133,2]
[398499616,1765755917917,152.87,0.000134,2]
[398499617,1765755920213,152.8,0.00012,2]
[398499618,1765755920428,500.0,0.00013273,2]
[398499619,1765755923356,500.0,0.00013273,2]
[398499620,1765755925387,500.0,0.00013273,2]
[398499621,1765755926100,500.0,0.00013273,2]
[398499639,1765755964119,5000.0,0.00013418,2]
[398499640,1765755965385,152.87,0.00012,2]
[398499641,1765755965672,152.87,0.000127,2]
[398499642,1765755966009,152.87,0.000133,2]
[398499643,1765755967577,500.0,0.00013273,2]
[398499644,1765755967837,500.0,0.00013273,2]
[398499645,1765755972348,10000.0,0.000134,2]
[398499646,1765755976026,500.0,0.00013273,2]
[398499647,1765755977277,500.0,0.00013273,2]
[398499648,1765755977308,417.70035796,0.00013273,2]
[398499649,1765755977865,500.0,0.00013273,2]
[398499650,1765755977954,500.0,0.00013273,2]
[398499651,1765755985223,211.49,7.747e-05,2]
[398499652,1765755985645,422.99,8.116e-05,2]
[398499653,1765755986041,634.48,8.485e-05,2]
[398499654,1765755986677,845.98,8.854e-05,2]
[398499655,1765755986779,5000.0,0.00013418,2]
[398499656,1765755986879,1057.47,9.223e-05,2]
[398499657,1765755987297,1268.96,9.592e-05,2]
[398499658,1765755987732,558.64,9.96e-05,2]
[398499659,1765755987762,921.82,9.96e-05,2]
[398499660,1765755988180,1691.95,0.00010329,2]
[398499661,1765755988299,-125.57078298,0.0001348,2]
[398499662,1765755988322,-72.77762567,0.00013491,2]
[398499663,1765755988618,1903.45,0.00010698,2]
[398499664,1765755989027,2114.94,0.00011067,2]
[398499665,1765755990752,-500.0,0.00013491,2]
[398499666,1765755993431,-216.9219787,0.00013491,2]
[398499667,1765755995504,-210.30039563,0.00013491,2]
[398499668,1765755995526,-60.23778749,0.00013491,2]
[398499670,1765756001367,-372.62625123,0.00013491,2]
[398499671,1765756002262,5000.0,0.00013418,2]
[398499672,1765756004286,-152.53,0.00013491,2]
[398499673,1765756006927,-291.95252721,0.00013491,2]
[398499674,1765756010503,-122.65343407,0.00013491,2]
[398499675,1765756010528,-216.34563614,0.00013491,2]
[398499676,1765756010691,5000.0,0.00013418,2]
[398499677,1765756013188,-300.0,0.00013491,2]
[398499678,1765756015315,-157.53,0.00013491,2]
[398499679,1765756016782,-201.62989558,0.00013491,2]
[398499680,1765756019735,-124.49446828,0.00013491,2]
[398499681,1765756019757,-89.65404479,0.00013491,2]
[398499682,1765756022415,-266.59539382,0.00013491,2]
[398499683,1765756023640,500.0,0.00013273,2]
[398499684,1765756023874,175.18,0.00012,2]
[398499685,1765756024349,175.18,0.00013,2]
[398499686,1765756025588,175.17,0.00012,2]
[398499687,1765756025694,-164.56013049,0.0001349,2]
[398499688,1765756025751,5000.0,0.00013418,2]
[398499689,1765756031442,-135.43986951,0.0001349,2]
[398499690,1765756031465,-38.11362858,0.00013491,2]
[398499691,1765756031745,500.0,0.00013273,2]
[398499692,1765756033374,169.052867,0.00012783,2]
[398499693,1765756033587,5000.0,0.00013418,2]
[398499694,1765756039227,500.0,0.00013273,2]
[398499695,1765756043510,500.0,0.00013273,2]
[398499696,1765756044619,500.0,0.00013273,2]
[398499697,1765756044674,500.0,0.00013273,2]
[398499698,1765756048732,5000.0,0.00013418,2]
[398499699,1765756056736,5000.0,0.00013418,2]
[398499700,1765756071538,5000.0,0.00013418,2]
[398499701,1765756075183,150.0,7.748e-05,2]
[398499702,1765756075620,180.71,8.117e-05,2]
[398499703,1765756076227,271.07,8.486e-05,2]
[398499704,1765756076648,361.42,8.855e-05,2]
[398499705,1765756077268,451.78,9.224e-05,2]
[398499706,1765756077459,542.14,9.593e-05,2]
[398499707,1765756077993,632.49,9.962e-05,2]
[398499708,1765756078856,722.85,0.00010331,2]
[398499709,1765756079315,813.21,0.000107,2]
[398499710,1765756079365,5000.0,0.00013418,2]
[398499711,1765756079732,903.56,0.00011069,2]
[398499712,1765756086768,500.0,0.00013273,2]
[398499713,1765756087138,500.0,0.00013273,2]
[398499714,1765756091824,10000.0,0.000134,2]
[398499718,1765756094542,5000.0,0.00013418,2]
[398499719,1765756094628,500.0,0.00013273,2]
[398499720,1765756094761,548.61461636,0.00013273,2]
[398499721,1765756096183,500.0,0.00013273,2]
[398499722,1765756096434,500.0,0.00013273,2]
[398499723,1765756102356,5000.0,0.00013418,2]
[398499724,1765756117567,5000.0,0.00013418,2]
[398499725,1765756122908,-300.0,0.0001349,2]
[398499726,1765756122932,-274.0,0.0001349,2]
[398499727,1765756122956,-1200.0,0.0001349,2]
[398499728,1765756122976,-500.0,0.0001349,2]
[398499729,1765756122996,-500.0,0.0001349,2]
[398499730,1765756123018,-476.63922632,0.0001349,2]
[398499731,1765756123039,-500.0,0.0001349,2]
[398499732,1765756123060,-500.0,0.0001349,2]
[398499733,1765756123081,-500.0,0.0001349,2]
[398499734,1765756123101,-518.23912966,0.0001349,2]
[398499735,1765756123124,-500.0,0.0001349,2]
[398499736,1765756123149,-500.0,0.0001349,2]
[398499737,1765756123171,-163.77836539,0.0001349,2]
[398499738,1765756123192,-500.0,0.0001349,2]
[398499739,1765756123215,-500.0,0.0001349,2]
[398499740,1765756123237,-500.0,0.0001349,2]
[398499741,1765756123259,-500.0,0.0001349,2]
[398499742,1765756123281,-500.0,0.0001349,2]
[398499743,1765756123306,-180.23378006,0.0001349,2]
[398499744,1765756123330,-172.57434033,0.0001349,2]
[398499745,1765756123352,-500.0,0.0001349,2]
[398499746,1765756123374,-500.0,0.0001349,2]
[398499747,1765756123397,-500.0,0.0001349,2]
[398499748,1765756123418,-605.63693281,0.00013491,2]
[398499749,1765756123441,-1000.0,0.00013491,2]
[398499750,1765756123465,-1000.0,0.00013491,2]
[398499751,1765756123487,-1000.0,0.00013491,2]
[398499752,1765756123510,-1000.0,0.00013491,2]
[398499753,1765756123533,-1000.0,0.00013491,2]
[398499754,1765756123554,-1000.0,0.00013491,2]
[398499755,1765756123576,-1000.0,0.00013491,2]
[398499756,1765756123597,-1000.0,0.00013491,2]
[398499757,1765756123620,-1000.0,0.00013491,2]
[398499758,1765756123642,-1000.0,0.00013491,2]
[398499759,1765756123663,-1000.0,0.00013491,2]
[398499760,1765756123684,-1000.0,0.00013491,2]
[398499761,1765756123705,-799.16843587,0.00013491,2]
[398499762,1765756123727,-271.38819055,0.00013531,2]
[398499763,1765756123747,-151.0,0.00013561,2]
[398499764,1765756123769,-179.36038715,0.00013561,2]
[398499765,1765756123790,-1200.0,0.00013697,2]
[398499766,1765756123811,-286.0,0.00013698,2]
[398499767,1765756123834,-1000.0,0.00013699,2]
[398499768,1765756123857,-500.0,0.00013699,2]
[398499769,1765756123881,-500.0,0.00013699,2]
[398499770,1765756123907,-500.0,0.00013699,2]
[398499771,1765756123929,-7.98121186,0.00013699,2]
[398499772,1765756125421,5000.0,0.00013418,2]
[398499773,1765756140620,5000.0,0.00013418,2]
[398499774,1765756148940,1657.15146245,0.00013418,2]
[398499775,1765756151696,500.0,0.00013273,2]
[398499776,1765756152859,150.0,7.737e-05,2]
[398499777,1765756153537,150.0,8.105e-05,2]
[398499778,1765756153679,150.0,8.474e-05,2]
[398499779,1765756154182,150.0,8.842e-05,2]
[398499780,1765756154592,150.0,9.211e-05,2]
[398499782,1765756155016,158.09,9.579e-05,2]
[398499783,1765756155441,184.43,9.948e-05,2]
[398499784,1765756155840,210.78,0.00010316,2]
[398499785,1765756156315,237.13,0.00010684,2]
[398499786,1765756156773,263.48,0.00011053,2]
[398499788,1765756163011,500.0,0.00013273,2]
[398499789,1765756163199,500.0,0.00013273,2]
[398499790,1765756163741,182.27,0.00013273,2]
[398499791,1765756163767,317.73,0.00013273,2]
[398499792,1765756164524,5000.0,0.00013418,2]
[398499793,1765756172413,-300.0,0.00013489,2]
[398499794,1765756179746,-152.8,0.0001349,2]
[398499795,1765756181896,-198.42270971,0.0001349,2]
[398499796,1765756183794,-148.77729029,0.0001349,2]
[398499797,1765756183819,-2.29270971,0.0001349,2]
[398499798,1765756185809,-159.46,0.0001349,2]
[398499799,1765756186862,5000.0,0.00013489,2]
[398499800,1765756187736,-338.24729029,0.0001349,2]
[398499801,1765756187773,-500.0,0.0001349,2]
[398499802,1765756188128,-500.0,0.0001349,2]
[398499803,1765756188165,-591.84583964,0.0001349,2]
[398499804,1765756188201,-500.0,0.0001349,2]
[398499805,1765756188241,-500.0,0.0001349,2]
[398499806,1765756188279,-500.0,0.0001349,2]
[398499807,1765756188313,-500.0,0.0001349,2]
[398499808,1765756202202,165.44,0.00012,2]
[398499809,1765756202491,165.44,0.000127,2]
[398499810,1765756202772,165.44,0.000133,2]
[398499811,1765756203337,-300.0,0.00013698,2]
[398499812,1765756203375,-300.0,0.00013698,2]
[398499813,1765756206942,500.0,0.00013273,2]
[398499814,1765756207281,500.0,0.00013273,2]
[398499815,1765756207591,300.0,0.00013673,2]
[398499816,1765756209789,5000.0,0.00013698,2]
[398499817,1765756210268,1200.0,0.00013698,2]
[398499818,1765756211637,1300.01,0.000136,2]
[398499819,1765756211666,7408.99,0.000136,2]
[398499820,1765756217025,500.0,0.00013273,2]
[398499821,1765756217107,500.0,0.00013273,2]
[398499822,1765756221671,150.0,7.809e-05,2]
[398499823,1765756222085,150.0,8.181e-05,2]
[398499836,1765756231868,-269.32362462,0.00013699,2]
[398499837,1765756231880,-222.69516352,0.00013699,2]
[398499838,1765756231889,-83.68483648,0.00013699,2]
[398499839,1765756231900,-416.31516352,0.00013699,2]
[398499840,1765756231909,-45.91283648,0.00013699,2]
[398499848,1765756231983,1291.02,0.00013698,2]
[398499853,1765756232016,3708.98,0.00013698,2]
[398499975,1765756237942,-462.12922461,0.00013699,2]
[398499976,1765756237951,-497.69307966,0.00013699,2]
[398499977,1765756237960,-500.0,0.00013699,2]
[398499978,1765756237969,-550.0059967,0.00013699,2]
[398499979,1765756237978,-163.79408364,0.00013699,2]
[398499980,1765756237988,-500.0,0.00013699,2]
[398499981,1765756237997,-500.0,0.00013699,2]
[398499982,1765756238007,-500.0,0.00013699,2]
[398499983,1765756238016,-500.0,0.00013699,2]
[398499985,1765756238025,-359.0070707,0.00013699,2]
[398499986,1765756238034,-500.0,0.00013699,2]
[398499987,1765756238043,-500.0,0.00013699,2]
[398499988,1765756238053,-500.0,0.00013699,2]
[398499989,1765756238062,-500.0,0.00013699,2]
[398499990,1765756238071,-500.0,0.00013699,2]
[398499991,1765756238081,-268.12180591,0.00013699,2]
[398499992,1765756238091,-615.0,0.00013699,2]
[398499993,1765756238100,-500.0,0.00013768,2]
[398499994,1765756238109,-527.85,0.00013809,2]
[398499995,1765756238120,-296.95270448,0.0001382,2]
[398499996,1765756238130,-621.31620441,0.0001382,2]
[398499997,1765756238139,-297.80375334,0.0001382,2]
[398499998,1765756238149,-1000.0,0.00013821,2]
[398499999,1765756238159,-1049.84083989,0.00013821,2]
[398500000,1765756238169,-1000.0,0.00013821,2]
[398500001,1765756238179,-1000.0,0.00013821,2]
[398500002,1765756238188,-1000.0,0.00013821,2]
[398500003,1765756238198,-464.30698853,0.00013821,2]
[398500004,1765756238207,-1000.0,0.00013821,2]
[398500005,1765756238217,-500.0,0.00013821,2]
[398500006,1765756238227,-1000.0,0.00013821,2]
[398500007,1765756238237,-1000.0,0.00013821,2]
[398500008,1765756238248,-668.17158996,0.00013821,2]
[398500009,1765756238257,-1000.0,0.00013821,2]
[398500010,1765756238266,-1000.0,0.00013821,2]
[398500011,1765756238276,-1000.0,0.00013821,2]
[398500012,1765756238285,-500.0,0.00013871,2]
[398500013,1765756238294,-617.9,0.00013871,2]
[398500014,1765756238304,-7204.14840478,0.00013872,2]
[398500015,1765756238313,-8187.59262403,0.00014021,2]
[398500016,1765756238323,-313.486,0.0001405,2]
[398500017,1765756238333,-250.0,0.00014121,2]
[398500018,1765756238342,-250.0,0.00014121,2]
[398500019,1765756238351,-1001.0,0.00014121,2]
[398500020,1765756238361,-250.0,0.00014121,2]
[398500021,1765756238370,-250.0,0.00014121,2]
[398500022,1765756238380,-250.0,0.00014121,2]
[398500023,1765756238389,-250.0,0.00014121,2]
[398500024,1765756238398,-250.0,0.00014121,2]
[398500025,1765756238407,-250.0,0.00014121,2]
[398500026,1765756238417,-250.0,0.00014121,2]
[398500027,1765756238426,-250.0,0.00014121,2]